bitfinex/quotes_BTCUSD_20250620
["timestamp","ask_amount","ask_price","bid_price","bid_amount"]
[1750426947515,0.57620386,105980.0,105970.0,0.36844493]
[1750426947728,0.02453494,105980.0,105970.0,0.36844493]
[1750426947965,0.03497014,105980.0,105970.0,0.20960493]
[1750426948414,0.02553494,105980.0,105970.0,0.20960493]
[1750426948676,0.03397014,105980.0,105970.0,0.20960493]
[1750426948911,0.02453494,105980.0,105970.0,0.20960493]
[1750426949160,0.44418995,105990.0,105980.0,0.21702099]
[1750426949410,1.19399058,105990.0,105980.0,0.20758588]
[1750426949656,1.01472839,105990.0,105980.0,0.21702108]
[1750426949913,1.19399138,105990.0,105980.0,0.20758588]
[1750426950156,1.19499138,105990.0,105980.0,0.21702117]
[1750426950653,0.05890526,105980.0,105970.0,0.20760502]
[1750426950905,0.6294461,105980.0,105970.0,0.21704147]
[1750426951151,0.60113924,105980.0,105970.0,0.2264781]
[1750426951392,0.6105748,105980.0,105970.0,0.2359141]
[1750426952205,0.79928965,105980.0,105970.0,0.19816929]
[1750426952496,0.05890588,105980.0,105970.0,0.20760547]
[1750426952710,0.79928965,105980.0,105970.0,0.20760547]
[1750426952960,0.20760503,105970.0,105960.0,0.34759047]
[1750426953197,0.80934676,105970.0,105960.0,0.20762497]
[1750426953430,0.79991084,105970.0,105960.0,0.20762497]
[1750426953682,0.24824192,105970.0,105960.0,0.22649894]
[1750426953888,0.79991084,105970.0,105960.0,0.22649894]
[1750426954097,0.24824192,105970.0,105960.0,0.21706204]
[1750426954302,0.05007263,105970.0,105960.0,0.22649902]
[1750426954518,0.00943583,105970.0,105960.0,0.21706116]
[1750426954720,0.00943583,105970.0,105960.0,0.21906116]
[1750426954957,0.9327043,105980.0,105970.0,0.1981692]
[1750426955168,0.38364,105980.0,105970.0,0.21704147]
[1750426955427,0.04364,105980.0,105970.0,0.21704147]
[1750426955648,0.06251049,105980.0,105970.0,0.21704147]
[1750426955879,0.05207511,105980.0,105970.0,0.21704147]
[1750426956104,0.04264,105980.0,105970.0,0.21704147]
[1750426956365,4.71e-05,105990.0,105980.0,0.21702099]
[1750426956592,4.71e-05,105990.0,105980.0,0.47105992]
[1750426956813,4.71e-05,105990.0,105980.0,0.48745992]
[1750426957479,4.71e-05,105990.0,105980.0,0.50365992]
[1750426958123,0.0010471,105990.0,105980.0,0.50365992]
[1750426958335,0.0010471,105990.0,105980.0,0.57526263]
[1750426959564,0.01048124,105990.0,105980.0,0.47109992]
[1750426959802,0.01248115,105990.0,105980.0,0.31329992]
[1750426959987,0.01248115,105990.0,105980.0,0.47205992]
[1750426960189,0.01248115,105990.0,105980.0,0.21802099]
[1750426960398,0.02191546,105990.0,105980.0,0.37682099]
[1750426960639,0.01248115,105990.0,105980.0,0.37682099]
[1750426960773,0.02191529,105990.0,105980.0,0.37682099]
[1750426960992,0.22004664,105990.0,105980.0,0.1991505]
[1750426961196,0.62405372,105990.0,105980.0,0.37674135]
[1750426961399,0.81275076,105990.0,105980.0,0.38617655]
[1750426961614,0.81275076,105990.0,105980.0,0.22745655]
[1750426962288,0.82218561,105990.0,105980.0,0.22745655]
[1750426962648,0.07238471,105990.0,105980.0,0.23689166]
[1750426962853,0.0030471,105990.0,105980.0,0.23689166]
[1750426963102,0.01248124,105990.0,105980.0,0.23689166]
[1750426963369,0.02191564,105990.0,105980.0,0.23689166]
[1750426963581,0.03135022,105990.0,105980.0,0.39549166]
[1750426963719,0.04078489,105990.0,105980.0,0.39549166]
[1750426963966,0.25164779,105990.0,105980.0,0.20858606]
[1750426964162,0.78444773,105990.0,105980.0,0.001]
[1750426964367,0.78444773,105990.0,105980.0,0.1991505]
[1750426964569,0.78444773,105990.0,105980.0,0.20858606]
[1750426964797,1.11501306,105990.0,105980.0,0.001]
[1750426965014,1.38335284,105990.0,105980.0,0.001]
[1750426965611,6.42774884,105990.0,105980.0,0.001]
[1750426966047,6.42674884,105990.0,105980.0,0.001]
[1750426966490,0.5687692,105970.0,105950.0,0.20764229]
[1750426966678,1.16311812,105970.0,105950.0,0.20764229]
[1750426966885,0.42271627,105970.0,105960.0,0.1981879]
[1750426967091,0.59972192,105970.0,105960.0,0.20762506]
[1750426967301,0.61532192,105970.0,105960.0,0.20762524]
[1750426967508,0.41715227,105970.0,105960.0,0.22649965]
[1750426967721,0.32456392,105990.0,105980.0,0.1981505]
[1750426967722,0.10876017,105990.0,105980.0,0.1981505]
[1750426967955,0.76240735,105990.0,105980.0,0.1981505]
[1750426968167,0.59029321,105990.0,105980.0,0.21702135]
[1750426968370,0.59029321,105990.0,105980.0,0.23589166]
[1750426968371,0.41103031,105990.0,105980.0,0.23589166]
[1750426968574,0.60916211,105990.0,105980.0,0.23589166]
[1750426968795,0.57591696,105990.0,105980.0,0.22645655]
[1750426969001,0.60916282,105990.0,105980.0,0.22645655]
[1750426969208,0.56648282,105990.0,105980.0,0.20758606]
[1750426969416,1.15139734,105990.0,105980.0,0.21702153]
[1750426969625,1.09928267,105990.0,105980.0,0.1981505]
[1750426969833,1.14196267,105990.0,105980.0,0.20758606]
[1750426970475,1.14196267,105990.0,105980.0,0.21702153]
[1750426970675,0.59029375,105990.0,105980.0,0.22645691]
[1750426970903,1.09928267,105990.0,105980.0,0.22645691]
[1750426971103,1.14196267,105990.0,105980.0,0.22645691]
[1750426971731,1.14596267,105990.0,105980.0,0.20758606]
[1750426971946,0.20758588,105980.0,105970.0,0.21702521]
[1750426972179,0.02830819,105970.0,105960.0,0.46150346]
[1750426972589,0.03774464,105970.0,105960.0,0.37562178]
[1750426972805,0.75925426,105980.0,105970.0,0.20760565]
[1750426973018,0.76869036,105980.0,105970.0,0.19816929]
[1750426973158,0.76869036,105980.0,105970.0,0.00943663]
[1750426973361,0.75925498,105980.0,105970.0,0.00943663]
[1750426973563,0.02830881,105970.0,105960.0,0.36618497]
[1750426973773,0.34943547,105980.0,105970.0,0.21704147]
[1750426973972,0.36830623,105980.0,105970.0,0.21704147]
[1750426974209,0.60913593,105980.0,105970.0,0.21704147]
[1750426974410,0.60913664,105980.0,105970.0,0.20760547]
[1750426974606,0.59970144,105980.0,105970.0,0.21704165]
[1750426974839,0.5818305,105980.0,105970.0,0.1991692]
[1750426975180,0.5818305,105980.0,105970.0,0.18973266]
[1750426975417,0.5818305,105980.0,105970.0,0.19916929]
[1750426975623,0.5818305,105980.0,105970.0,0.21804228]
[1750426976047,1.13349942,105980.0,105970.0,0.21804228]
[1750426976256,1.13349942,105980.0,105970.0,0.22847855]
[1750426976257,1.1002548,105980.0,105970.0,0.22847855]
[1750426976477,0.39311511,105980.0,105970.0,0.23791455]
[1750426976714,0.41198605,105980.0,105970.0,0.23791455]
[1750426976921,0.3598704,105980.0,105970.0,0.23791455]
[1750426977135,0.36930587,105980.0,105970.0,0.23791455]
[1750426977369,0.341,105980.0,105970.0,0.23791455]
[1750426977593,0.001,105980.0,105970.0,0.9152624]
[1750426978031,0.001,105980.0,105970.0,1.46980325]
[1750426978253,0.001,105980.0,105970.0,1.49814025]
[1750426978897,0.001,105980.0,105970.0,1.49714025]
[1750426979114,0.001,105980.0,105970.0,1.5924101]
[1750426979336,4.71e-05,105990.0,105980.0,0.24812099]
[1750426979524,4.71e-05,105990.0,105980.0,0.50199992]
[1750426980008,0.00948124,105990.0,105980.0,0.30286481]
[1750426980251,0.7498472,105990.0,105980.0,0.18871485]
[1750426980470,0.01886997,105980.0,105970.0,0.23594193]
[1750426980699,0.03774082,105980.0,105970.0,0.37576147]
[1750426980917,0.02830526,105980.0,105970.0,0.37576147]
[1750426981338,0.01886997,105980.0,105970.0,0.37576147]
[1750426981546,0.80842773,105990.0,105980.0,0.21702099]
[1750426981547,0.40159635,105990.0,105980.0,0.21702099]
[1750426981759,0.59972824,105990.0,105980.0,0.20758588]
[1750426981972,0.39216124,105990.0,105980.0,0.22645619]
[1750426982183,0.05216124,105990.0,105980.0,0.22645619]
[1750426982389,0.0427271,105990.0,105980.0,0.22745619]
[1750426982580,0.05216124,105990.0,105980.0,0.22745619]
[1750426982946,0.07103013,105990.0,105980.0,0.22745619]
[1750426983166,0.26472708,105990.0,105980.0,0.20958588]
[1750426983367,0.28359651,105990.0,105980.0,0.21902117]
[1750426983592,0.27416237,105990.0,105980.0,0.37770117]
[1750426983821,0.80696249,105990.0,105980.0,0.002]
[1750426983984,0.82872791,105990.0,105980.0,0.002]
[1750426984851,0.19815059,105980.0,105970.0,0.19816911]
[1750426985279,0.2075857,105980.0,105970.0,0.20760547]
[1750426985482,0.19815059,105980.0,105970.0,0.20760547]
[1750426985686,0.00943636,105970.0,105960.0,0.35682745]
[1750426985921,0.00943609,105970.0,105960.0,0.3757016]
[1750426986130,0.02830863,105970.0,105960.0,0.3757016]
[1750426986433,0.02830863,105970.0,105960.0,0.2170616]
[1750426986674,0.21706231,105960.0,105950.0,0.028346]
[1750426986894,0.21706231,105960.0,105950.0,0.23599065]
[1750426986895,0.76873123,105960.0,105950.0,0.23599065]
[1750426987105,0.21706231,105960.0,105950.0,0.20764483]
[1750426987529,0.20762524,105960.0,105950.0,0.20764483]
[1750426987745,0.79253691,105960.0,105950.0,0.1982066]
[1750426987978,0.00943814,105950.0,105940.0,0.37599418]
[1750426988189,0.00943814,105950.0,105940.0,0.47127311]
[1750426988396,0.00943796,105950.0,105940.0,0.47127311]
[1750426988784,0.01887601,105950.0,105940.0,0.47127311]
[1750426988998,0.03775167,105950.0,105940.0,0.46183452]
[1750426989250,0.75936064,105950.0,105940.0,0.0001]
[1750426989548,1.29328064,105950.0,105940.0,0.0001]
[1750426989766,6.44749642,105950.0,105940.0,0.0001]
[1750426990196,5.8958275,105950.0,105940.0,0.0001]
[1750426990626,6.44749642,105950.0,105940.0,0.0001]
[1750426991106,6.44849642,105950.0,105940.0,0.0001]
[1750426991572,6.45349642,105950.0,105940.0,0.0011]
[1750426991799,6.45249642,105950.0,105940.0,0.0011]
[1750426992013,1.13456064,105950.0,105940.0,0.0011]
[1750426992223,1.33024064,105950.0,105940.0,0.0011]
[1750426992645,1.34644064,105950.0,105940.0,0.0011]
[1750426993742,1.34644064,105950.0,105930.0,0.20388399]
[1750426993743,0.35887727,105940.0,105930.0,0.20388399]
[1750426993953,0.54525905,105950.0,105940.0,0.2171032]
[1750426994172,0.41100264,105950.0,105940.0,0.22654188]
[1750426994396,0.06156486,105950.0,105940.0,0.22654188]
[1750426994838,0.05212707,105950.0,105940.0,0.22654188]
[1750426995042,0.06900273,105950.0,105940.0,0.22654188]
[1750426995230,0.05956486,105950.0,105940.0,0.22654188]
[1750426995437,0.05956477,105950.0,105940.0,0.22654188]
[1750426995662,0.05956477,105950.0,105940.0,0.24304188]
[1750426995901,0.06900264,105950.0,105940.0,0.24304188]
[1750426996109,0.05012707,105950.0,105940.0,0.24304188]
[1750426996315,0.06900264,105950.0,105940.0,0.40688188]
[1750426996531,0.00504707,105950.0,105940.0,0.50216081]
[1750426996766,0.00504707,105950.0,105940.0,0.51806081]
[1750426996767,0.00704707,105950.0,105940.0,0.51806081]
[1750426998567,0.00504707,105950.0,105940.0,0.51806081]
[1750426998783,4.707e-05,105950.0,105940.0,0.51806081]
[1750426999375,0.00204707,105950.0,105940.0,0.52006081]
[1750426999596,0.00204707,105950.0,105940.0,0.61533066]
[1750427000898,0.00204707,105950.0,105940.0,1.16699958]
[1750427002207,0.00204707,105950.0,105940.0,0.52006081]
[1750427002692,0.00204707,105950.0,105940.0,0.34032081]
[1750427002898,0.00204707,105950.0,105940.0,0.48754081]
[1750427003100,0.01148468,105950.0,105940.0,0.39234188]
[1750427003472,0.03979892,105950.0,105940.0,0.22854188]
[1750427003672,0.04923724,105950.0,105940.0,0.3828632]
[1750427003949,0.82531683,105950.0,105940.0,0.2191032]
[1750427004148,0.82531683,105950.0,105940.0,0.20966443]
[1750427004410,1.17844082,105950.0,105940.0,0.002]
[1750427005558,1.17844082,105950.0,105940.0,0.1907861]
[1750427005852,0.6109719,105950.0,105940.0,0.21910355]
[1750427006088,0.60420995,105950.0,105940.0,0.2285424]
[1750427006362,0.39656494,105950.0,105940.0,0.23798055]
[1750427006570,0.41544113,105950.0,105940.0,0.23798055]
[1750427006781,0.39656468,105950.0,105940.0,0.23798055]
[1750427006993,0.40600255,105950.0,105940.0,0.23798055]
[1750427007217,0.4154406,105950.0,105940.0,0.23798055]
[1750427007423,0.42487874,105950.0,105940.0,0.23798055]
[1750427007636,1.16531665,105950.0,105940.0,0.2191031]
[1750427007842,1.13700259,105950.0,105940.0,0.1907861]
[1750427008043,1.15796427,105950.0,105940.0,0.20022522]
[1750427008257,0.40600326,105950.0,105940.0,0.21910284]
[1750427008486,0.60420986,105950.0,105940.0,0.20966416]
[1750427008775,0.61364827,105950.0,105940.0,0.21910301]
[1750427008952,0.61364827,105950.0,105940.0,0.1907861]
[1750427009149,0.58533376,105950.0,105940.0,0.2002254]
[1750427009278,0.58533376,105950.0,105940.0,0.20966461]
[1750427010226,0.58533376,105950.0,105940.0,0.2002254]
[1750427011169,0.58533376,105950.0,105940.0,0.002]
[1750427011404,1.13700268,105950.0,105940.0,0.002]
[1750427011648,1.33170268,105950.0,105940.0,0.002]
[1750427012079,0.01148477,105950.0,105940.0,0.32382089]
[1750427012309,0.03036069,105950.0,105940.0,0.50282089]
[1750427012549,0.03036069,105950.0,105940.0,0.48762089]
[1750427012767,0.00204707,105950.0,105940.0,0.48762089]
[1750427012979,0.00204707,105950.0,105940.0,0.50392089]
[1750427013187,0.01148486,105950.0,105940.0,0.50392089]
[1750427013597,0.01148477,105950.0,105940.0,0.50392089]
[1750427013902,0.02092264,105950.0,105940.0,0.50392089]
[1750427014138,0.01148477,105950.0,105940.0,0.50392089]
[1750427014555,0.00204707,105950.0,105940.0,0.50392089]
[1750427014817,0.01148477,105950.0,105940.0,0.50392089]
[1750427015028,0.00204707,105950.0,105940.0,0.50392089]
[1750427015209,0.00204707,105950.0,105940.0,0.51892089]
[1750427015363,0.01148477,105950.0,105940.0,0.51892089]
[1750427015571,0.02092264,105950.0,105940.0,0.50392089]
[1750427015804,0.00204707,105950.0,105940.0,0.50392089]
[1750427016127,0.00204707,105950.0,105940.0,0.59003724]
[1750427016602,0.00204707,105950.0,105940.0,1.14170616]
[1750427017231,0.00204707,105950.0,105940.0,1.17005416]
[1750427017659,0.00204707,105950.0,105940.0,0.61838524]
[1750427018299,0.00204707,105950.0,105940.0,0.61814524]
[1750427018526,0.00204707,105950.0,105940.0,0.35216889]
[1750427018771,0.01148468,105950.0,105940.0,0.48730089]
[1750427018992,0.00204707,105950.0,105940.0,0.48730089]
[1750427019185,0.00204707,105950.0,105940.0,0.50340089]
[1750427019858,0.03979892,105950.0,105940.0,0.21910328]
[1750427020077,0.03979892,105950.0,105940.0,0.20022531]
[1750427020078,0.81123612,105950.0,105940.0,0.20022531]
[1750427020287,0.79236064,105950.0,105940.0,0.20022531]
[1750427020920,0.24069172,105950.0,105940.0,0.20022531]
[1750427021136,0.22479172,105950.0,105940.0,0.21910337]
[1750427021474,0.22479172,105950.0,105940.0,0.22854222]
[1750427022039,0.22479172,105950.0,105940.0,0.23798099]
[1750427022193,0.03602344,105950.0,105940.0,0.23798046]
[1750427022433,0.03602291,105950.0,105940.0,0.23798046]
[1750427022637,0.24366792,105950.0,105940.0,0.23798046]
[1750427022977,0.03602291,105950.0,105940.0,0.23798046]
[1750427023157,0.03036114,105950.0,105940.0,0.23798046]
[1750427025212,0.00204707,105950.0,105940.0,0.52795939]
[1750427026288,0.00204707,105950.0,105940.0,0.60330244]
[1750427027712,0.00204707,105950.0,105940.0,0.63165244]
[1750427027964,0.00204707,105950.0,105940.0,0.72692229]
[1750427031647,0.00204707,105950.0,105940.0,1.27859121]
[1750427033842,0.00204707,105950.0,105940.0,0.72692229]
[1750427034494,0.00204707,105950.0,105940.0,1.27859121]
[1750427035566,0.032,105990.0,105950.0,0.34]
[1750427035779,5e-05,106000.0,105990.0,0.21700051]
[1750427036010,5e-05,106000.0,105990.0,1.05698836]
[1750427036216,5e-05,106000.0,105990.0,1.47223158]
[1750427036504,5e-05,106000.0,105990.0,1.50056758]
[1750427036818,5e-05,106000.0,105990.0,1.66510843]
[1750427037056,5e-05,106000.0,105990.0,1.74583743]
[1750427037295,5e-05,106000.0,105990.0,1.74591743]
[1750427037817,5e-05,106000.0,105990.0,1.67067421]
[1750427038235,5e-05,106000.0,105990.0,1.81045828]
[1750427038455,5e-05,106020.0,106010.0,0.79882849]
[1750427038684,0.0001914,106020.0,106010.0,1.12879327]
[1750427039805,0.0001914,106020.0,106010.0,1.46879327]
[1750427040017,0.0001914,106020.0,106010.0,1.48333412]
[1750427040234,0.0001914,106020.0,106010.0,1.63333412]
[1750427040486,0.0001914,106020.0,106010.0,1.63433412]
[1750427041152,0.0001914,106020.0,106010.0,0.9274188]
[1750427041386,0.0001914,106020.0,106010.0,0.90296435]
[1750427041866,0.0001914,106020.0,106010.0,0.54800435]
[1750427042086,0.0001914,106020.0,106010.0,0.96829327]
[1750427042301,0.0001914,106020.0,106010.0,1.48531412]
[1750427042734,0.0001914,106020.0,106010.0,1.49792975]
[1750427042942,0.0011914,106020.0,106010.0,1.49792975]
[1750427043600,0.0011914,106020.0,106010.0,1.89422975]
[1750427044057,5e-05,106040.0,106030.0,0.24801866]
[1750427044410,0.00052096,106040.0,106030.0,1.10295747]
[1750427045445,0.00052096,106040.0,106030.0,0.53518855]
[1750427045940,0.00052096,106040.0,106030.0,0.55128855]
[1750427046166,0.00052096,106040.0,106030.0,1.10295747]
[1750427046376,0.00052096,106040.0,106030.0,1.12753447]
[1750427046597,0.00152096,106040.0,106030.0,1.13353447]
[1750427046822,0.00152096,106040.0,106030.0,1.48807532]
[1750427047041,0.00152096,106040.0,106030.0,0.9817664]
[1750427047259,0.00152096,106040.0,106030.0,1.53843532]
[1750427049512,0.00152096,106040.0,106030.0,1.31609447]
[1750427049734,0.00152096,106040.0,106030.0,1.52377447]
[1750427049959,0.00152096,106040.0,106030.0,0.91056555]
[1750427050400,0.00152096,106040.0,106030.0,0.89556555]
[1750427050616,0.00152096,106040.0,106030.0,0.39332555]
[1750427050905,0.00152096,106040.0,106030.0,0.55556555]
[1750427051587,0.00152096,106040.0,106030.0,1.12293447]
[1750427051817,0.00152096,106040.0,106030.0,1.13933447]
[1750427053427,0.00152096,106040.0,106030.0,1.15387532]
[1750427054315,0.00152096,106040.0,106030.0,1.49387532]
[1750427054766,0.00152096,106040.0,106030.0,0.9422064]
[1750427054982,0.00152096,106040.0,106030.0,0.89532555]
[1750427056751,0.00152096,106040.0,106030.0,1.44699447]
[1750427056996,0.00152096,106040.0,106030.0,1.46249447]
[1750427057734,0.00152096,106040.0,106030.0,0.73332555]
[1750427057966,0.00152096,106040.0,106030.0,0.89548555]
[1750427058884,0.01762096,106040.0,106030.0,0.55548555]
[1750427058888,0.03402096,106040.0,106030.0,0.34777459]
[1750427059129,0.05288052,106040.0,106030.0,0.48543759]
[1750427059366,0.06231047,106040.0,106030.0,0.39023866]
[1750427059616,0.06231047,106040.0,106030.0,0.48551759]
[1750427059617,0.04345056,106040.0,106030.0,0.48551759]
[1750427060105,0.61397913,106040.0,106030.0,0.39023866]
[1750427060320,0.62340917,106040.0,106030.0,0.38523866]
[1750427060536,0.63283921,106040.0,106030.0,0.38523866]
[1750427060760,0.06131021,106040.0,106030.0,0.37923866]
[1750427060989,0.06131038,106040.0,106030.0,0.37923866]
[1750427061246,0.06231038,106040.0,106030.0,0.38123866]
[1750427061474,0.04345056,106040.0,106030.0,0.38123866]
[1750427061710,0.05288043,106040.0,106030.0,0.38123866]
[1750427061946,0.06231047,106040.0,106030.0,0.38123866]
[1750427062426,0.06231047,106040.0,106030.0,0.38223866]
[1750427062898,0.04345065,106040.0,106030.0,0.38223866]
[1750427063026,0.05288052,106040.0,106030.0,0.38223866]
[1750427063258,0.04345065,106040.0,106030.0,0.38223866]
[1750427063466,0.05288052,106040.0,106030.0,0.38223866]
[1750427063676,0.06231056,106040.0,106030.0,0.38223866]
[1750427064537,0.05288052,106040.0,106030.0,0.38223866]
[1750427064755,0.03402096,106040.0,106030.0,0.38223866]
[1750427064993,0.04345074,106040.0,106030.0,0.38223866]
[1750427065170,0.04345065,106040.0,106030.0,0.38223866]
[1750427065617,0.05288052,106040.0,106030.0,0.38223866]
[1750427066052,1.68482722,106040.0,106030.0,0.003]
[1750427066550,6.83330473,106040.0,106030.0,0.003]
[1750427066768,6.83330473,106040.0,106030.0,0.002]
[1750427067184,6.30653136,106040.0,106030.0,0.002]
[1750427067800,0.53805697,106030.0,106020.0,0.00943218]
[1750427067994,0.2474392,106020.0,106010.0,0.19809442]
[1750427068220,0.2474392,106020.0,106010.0,0.36956731]
[1750427068221,0.84382812,106020.0,106010.0,0.36956731]
[1750427068427,0.84382812,106020.0,105990.0,0.18869704]
[1750427068428,0.01886658,106000.0,105990.0,0.18869704]
[1750427068795,0.78971563,106000.0,105990.0,0.1981318]
[1750427069222,0.04936845,105990.0,105980.0,0.37958037]
[1750427069681,0.04936836,105990.0,105980.0,0.37958037]
[1750427069903,0.05880285,105990.0,105980.0,0.37972177]
[1750427070168,0.2475006,105990.0,105980.0,0.37028728]
[1750427070412,0.80860374,105990.0,105980.0,0.37972239]
[1750427070626,0.66466661,105990.0,105980.0,0.21716239]
[1750427070841,0.11299769,105990.0,105980.0,0.37980239]
[1750427071265,0.10356302,105990.0,105980.0,0.37980239]
[1750427071449,0.08469422,105990.0,105980.0,0.37980239]
[1750427071698,0.09412853,105990.0,105980.0,0.37980239]
[1750427071924,0.95716981,106000.0,105990.0,0.21700051]
[1750427072138,0.45026089,106000.0,105990.0,0.21700051]
[1750427072577,0.64837409,106000.0,105990.0,0.21700051]
[1750427072788,1.20004292,106000.0,105990.0,0.2170006]
[1750427073002,1.14597581,106000.0,105980.0,0.20772639]
[1750427073221,0.79243557,105990.0,105980.0,0.38064257]
[1750427073438,0.80187015,105990.0,105980.0,0.39007777]
[1750427073655,0.80930446,105990.0,105980.0,0.20772746]
[1750427073871,0.80930446,105990.0,105980.0,0.38899813]
[1750427074571,0.80930446,105990.0,105980.0,0.20772746]
[1750427074787,0.79443557,105990.0,105980.0,0.37108746]
[1750427075185,0.79443557,105990.0,105980.0,0.38052284]
[1750427075452,0.004,105990.0,105980.0,0.54311107]
[1750427076083,0.005,105990.0,105980.0,0.54311107]
[1750427076770,0.01443422,105990.0,105980.0,0.48523688]
[1750427076986,0.03330329,105990.0,105980.0,0.48523688]
[1750427077420,0.0333032,105990.0,105980.0,0.48523688]
[1750427077634,0.02386853,105990.0,105980.0,0.48523688]
[1750427077927,0.01443422,105990.0,105980.0,0.48523688]
[1750427078136,0.02386862,105990.0,105980.0,0.48523688]
[1750427078351,0.81490401,105990.0,105980.0,0.38044266]
[1750427078568,0.81490401,105990.0,105980.0,0.38987777]
[1750427078786,0.82433886,105990.0,105980.0,0.38987777]
[1750427079233,0.0368,105990.0,105980.0,0.38987777]
[1750427079450,0.005,105990.0,105980.0,0.4851567]
[1750427079657,0.005,105990.0,105980.0,0.61242655]
[1750427080550,0.005,105990.0,105980.0,0.59682655]
[1750427082639,0.005,105990.0,105980.0,0.45084655]
[1750427082867,0.61050671,105990.0,105980.0,0.22759822]
[1750427083094,0.61050671,105990.0,105980.0,0.1631814]
[1750427083095,0.79623521,105990.0,105980.0,0.1631814]
[1750427083306,0.78680072,105990.0,105980.0,0.3613319]
[1750427083518,0.77736596,105990.0,105980.0,0.36133181]
[1750427083728,0.59810341,105990.0,105980.0,0.38963777]
[1750427083941,0.80566934,105990.0,105980.0,0.37076728]
[1750427084178,0.81510419,105990.0,105980.0,0.19929181]
[1750427084392,0.81510419,105990.0,105980.0,0.38016266]
[1750427084818,1.13623548,105990.0,105980.0,0.35185625]
[1750427085047,1.12680081,105990.0,105980.0,0.0011414]
[1750427085263,1.12680081,105990.0,105980.0,0.37064764]
[1750427086377,1.12680081,105990.0,105980.0,0.3800832]
[1750427086992,1.12680081,105990.0,105980.0,0.38951867]
[1750427087201,1.12680081,105990.0,105980.0,0.39895405]
[1750427087418,1.12680081,105990.0,105980.0,0.3800832]
[1750427087645,1.12680081,105990.0,105980.0,0.2181632]
[1750427087862,1.12680081,105990.0,105980.0,0.1629014]
[1750427088549,1.12680081,105990.0,105980.0,0.0011414]
[1750427088776,1.39830059,105990.0,105980.0,0.0011414]
[1750427092930,6.44269659,105990.0,105980.0,0.0011414]
[1750427097017,1.13623539,105990.0,105980.0,0.0011414]
[1750427097311,0.25728647,105990.0,105980.0,0.1992919]
[1750427097548,1.13952081,105990.0,105980.0,0.0011414]
[1750427097783,1.17132081,105990.0,105980.0,0.0011414]
[1750427099250,1.28114059,105990.0,105980.0,0.0011414]
[1750427099489,6.32553659,105990.0,105980.0,0.0011414]
[1750427099733,1.13952081,105990.0,105980.0,0.20872764]
[1750427099953,1.13952081,105990.0,105980.0,0.19929199]
[1750427100181,1.13952081,105990.0,105980.0,0.21816302]
[1750427100415,0.35443405,105990.0,105980.0,0.23703342]
[1750427100666,0.005,105990.0,105980.0,0.36361235]
[1750427102918,0.004,105990.0,105980.0,0.36361235]
[1750427103352,0.57453728,105990.0,105980.0,0.32287706]
[1750427103592,0.58397168,105990.0,105980.0,0.22759813]
[1750427103815,0.004,105990.0,105980.0,0.24349813]
[1750427104031,0.03230294,105990.0,105980.0,0.24349813]
[1750427104263,0.03230285,105990.0,105980.0,0.22759813]
[1750427104490,0.04173752,105990.0,105980.0,0.22759813]
[1750427104716,0.02830285,105990.0,105980.0,0.22659813]
[1750427105009,0.01886836,105990.0,105980.0,0.22659813]
[1750427105242,0.02186836,105990.0,105980.0,0.24419813]
[1750427105466,0.01243405,105990.0,105980.0,0.24419813]
[1750427105884,0.02186827,105990.0,105980.0,0.23476302]
[1750427106101,0.77166952,105990.0,105980.0,0.1992919]
[1750427106320,0.77166952,105990.0,105980.0,0.21816239]
[1750427106321,0.003,105990.0,105980.0,0.21816239]
[1750427106536,0.03130285,105990.0,105980.0,0.23416239]
[1750427106943,0.02186836,105990.0,105980.0,0.23416239]
[1750427107178,0.02186836,105990.0,105980.0,0.49060132]
[1750427107393,0.02186836,105990.0,105980.0,0.3764519]
[1750427107394,0.22000051,105990.0,105980.0,0.3764519]
[1750427107622,1.11166943,105990.0,105980.0,0.36988746]
[1750427107845,1.10223512,105990.0,105980.0,0.21816275]
[1750427108066,1.11166988,105990.0,105980.0,0.22759795]
[1750427108295,1.12110473,105990.0,105980.0,0.22759795]
[1750427108527,1.11167024,105990.0,105980.0,0.0011414]
[1750427108820,1.09280081,105990.0,105980.0,0.19929199]
[1750427109242,1.09280081,105990.0,105980.0,0.0011414]
[1750427109436,1.12470081,105990.0,105980.0,0.0011414]
[1750427111221,1.39556059,105990.0,105980.0,0.0011414]
[1750427112723,1.12170081,105990.0,105980.0,0.0001414]
[1750427112919,1.29580081,105990.0,105980.0,0.0001414]
[1750427113132,1.28636596,105990.0,105980.0,0.0001414]
[1750427113336,1.31776596,105990.0,105980.0,0.0001414]
[1750427113544,1.32276596,105990.0,105980.0,0.0011414]
[1750427114169,1.43258574,105990.0,105980.0,0.0011414]
[1750427118626,0.35543449,105990.0,105980.0,0.18985625]
[1750427118863,0.05,105990.0,105980.0,0.25076239]
[1750427119120,0.06886854,105990.0,105980.0,0.25076239]
[1750427119575,0.06886845,105990.0,105980.0,0.25076239]
[1750427119812,0.07830294,105990.0,105980.0,0.29239443]
[1750427120060,0.63940653,105990.0,105980.0,0.23466239]
[1750427120350,1.14923512,105990.0,105980.0,0.0011414]
[1750427121056,1.16473512,105990.0,105980.0,0.0011414]
[1750427121307,1.34137512,105990.0,105980.0,0.0011414]
[1750427121525,1.4511949,105990.0,105980.0,0.0011414]
[1750427122184,0.5975662,105990.0,105980.0,0.21816275]
[1750427122424,0.35543422,105990.0,105980.0,0.24289786]
[1750427122642,0.36486853,105990.0,105980.0,0.25929786]
[1750427122918,0.006,105990.0,105980.0,0.25929786]
[1750427123161,0.006,105990.0,105980.0,0.41641337]
[1750427123830,0.01543414,105990.0,105980.0,0.35457679]
[1750427124371,0.006,105990.0,105980.0,0.35457679]
[1750427124601,0.01543414,105990.0,105980.0,0.35457679]
[1750427124817,0.006,105990.0,105980.0,0.35457679]
[1750427125268,0.01543422,105990.0,105980.0,0.35457679]
[1750427125483,0.006,105990.0,105980.0,0.35457679]
[1750427125701,0.006,105990.0,105980.0,0.42594126]
[1750427126281,0.03430285,105990.0,105980.0,0.42594126]
[1750427126535,1.10523512,105990.0,105980.0,0.0011414]
[1750427126745,1.09580063,105990.0,105980.0,0.0011414]
[1750427127185,0.346,105990.0,105980.0,0.20872746]
[1750427127411,0.36486871,105990.0,105980.0,0.24409795]
[1750427127630,0.36486871,105990.0,105980.0,0.23466284]
[1750427127631,0.58186923,105990.0,105980.0,0.23466284]
[1750427127846,0.58186994,105990.0,105980.0,0.25353333]
[1750427128095,0.56300123,105990.0,105980.0,0.21816284]
[1750427128303,0.56300123,105990.0,105980.0,0.22759813]
[1750427128304,1.11467015,105990.0,105980.0,0.22759813]
[1750427128936,1.10523557,105990.0,105980.0,0.0011414]
[1750427129150,1.10523557,105990.0,105980.0,0.1992919]
[1750427129399,1.08636596,105990.0,105980.0,0.0011414]
[1750427130484,1.10166596,105990.0,105980.0,0.0011414]
[1750427131385,1.11746596,105990.0,105980.0,0.0011414]
[1750427131601,1.21274489,105990.0,105980.0,0.0011414]
[1750427134678,6.27168174,105990.0,105980.0,0.0011414]
[1750427135311,6.29421691,105990.0,105980.0,0.0011414]
[1750427135739,5.61464641,105980.0,105970.0,0.0001]